Workbook

Sheet Guidance
A2: RESOURCES:
A4: The following resources can be accessed via the tabs below:
A6: a) 2023 Template - Helps to plan the hours to be worked by an employee. Will assist in ensuring that allocated hours equate to total hours to be worked during the leave year.
A8: b) Working Hours Calculator - Assists in calculating the total number of hours to be worked per year (excluding Annual Leave and Public Holiday).
A10: The '2023 Template' and 'Working Hours Calculator' can be used to help plan an employees annualised hours working pattern. The Annual Leave Calculator for the current year (found on Arcadia under HR Policies and Procedure/Resource Pack) will help when working out AL/PH entitlement to be set up in Bodet.
A12: GUIDANCE:
A14: A copy of the spreadsheet should be taken for each employee/post.
A16: 1. Input employee name and job title.
A18: 2. Input contractual hours per annum (excluding annual leave and public holiday). If hours given include AL/PH the Working Hours Calculator worksheet can be used to calculate the contractual hours per annum (excluding annual leave and public holiday).
A20: 3. Input the start and end dates for this year by clicking on the relevant cells (M8/M9) and using the dropdowns.
A21: (i) For an employee who is expected to work for the whole year these will be 01/01/2023 and 31/12/2023.
A22: (ii) For any days that are outside the start and end dates entered the cells automatically turn red.
A24: 4. Ensure that all of the cells highlighted in red have a value of 0.00.
A26: 5. Confirm whether the employee has greater than 5 years service by clicking on the relevant cell (M10) and using the dropdown to select "Yes" or "No".
A28: 6. Enter the average number of days worked per week. The standard is 5 if there is no predicted work pattern, but if a rota is being used then the total number of days to be worked divided by weeks this year that are expected to be worked (maximum 52.18) should be used. Please note this figure is fixed for the whole year.
A30: 7. If there are hours bought forward from the previous year/spreadsheet input the total number of hours to be added.
A31: The Annualised Hours Planner:
A33: The planned number of hours to be worked each day is entered in the appropriate cells.
A35: The "Weekly Total (Excl. AL/PH)" column totals the hours to be worked during each week.
A37: The "Hours Remaining (Excl. AL/PH)" column shows the total hours remaining to be worked during this calendar year.
A38: (i) If, at the end of the calendar year, the figure in this column is negative then the hours that the employee has worked exceeded the total contracted hours by the number indicated. These hours should be claimed as additional hours, however, if any of these hours exceed the annual overtime threshold (1931 hours pro rata) they should be claimed as overtime.
A39: (ii) If, at the end of the calendar year, the figure in this column is positive then the hours that the employee has worked is less than the total contracted hours by the number indicated. These hours should be added to the following year's total.

Sheet calendar2023
A1: Calendar for | B1: 2023
B2: Date | C2: Day | D2: Number of days
B3: 2023-01-01 | C3: Sunday | D3: 1
B4: 2023-01-02 | C4: Monday | D4: 2
B5: 2023-01-03 | C5: Tuesday | D5: 3
B6: 2023-01-04 | C6: Wednesday | D6: 4
B7: 2023-01-05 | C7: Thursday | D7: 5
B8: 2023-01-06 | C8: Friday | D8: 6
B9: 2023-01-07 | C9: Saturday | D9: 7
B10: 2023-01-08 | C10: Sunday | D10: 8
B11: 2023-01-09 | C11: Monday | D11: 9
B12: 2023-01-10 | C12: Tuesday | D12: 10
B13: 2023-01-11 | C13: Wednesday | D13: 11
B14: 2023-01-12 | C14: Thursday | D14: 12
B15: 2023-01-13 | C15: Friday | D15: 13
B16: 2023-01-14 | C16: Saturday | D16: 14
B17: 2023-01-15 | C17: Sunday | D17: 15
B18: 2023-01-16 | C18: Monday | D18: 16
B19: 2023-01-17 | C19: Tuesday | D19: 17
B20: 2023-01-18 | C20: Wednesday | D20: 18
B21: 2023-01-19 | C21: Thursday | D21: 19
B22: 2023-01-20 | C22: Friday | D22: 20
B23: 2023-01-21 | C23: Saturday | D23: 21
B24: 2023-01-22 | C24: Sunday | D24: 22
B25: 2023-01-23 | C25: Monday | D25: 23
B26: 2023-01-24 | C26: Tuesday | D26: 24
B27: 2023-01-25 | C27: Wednesday | D27: 25
B28: 2023-01-26 | C28: Thursday | D28: 26
B29: 2023-01-27 | C29: Friday | D29: 27
B30: 2023-01-28 | C30: Saturday | D30: 28
B31: 2023-01-29 | C31: Sunday | D31: 29
B32: 2023-01-30 | C32: Monday | D32: 30
B33: 2023-01-31 | C33: Tuesday | D33: 31
B34: 2023-02-01 | C34: Wednesday | D34: 32
B35: 2023-02-02 | C35: Thursday | D35: 33
B36: 2023-02-03 | C36: Friday | D36: 34
B37: 2023-02-04 | C37: Saturday | D37: 35
B38: 2023-02-05 | C38: Sunday | D38: 36
B39: 2023-02-06 | C39: Monday | D39: 37
B40: 2023-02-07 | C40: Tuesday | D40: 38
B41: 2023-02-08 | C41: Wednesday | D41: 39
B42: 2023-02-09 | C42: Thursday | D42: 40
B43: 2023-02-10 | C43: Friday | D43: 41
B44: 2023-02-11 | C44: Saturday | D44: 42
B45: 2023-02-12 | C45: Sunday | D45: 43
B46: 2023-02-13 | C46: Monday | D46: 44
B47: 2023-02-14 | C47: Tuesday | D47: 45
B48: 2023-02-15 | C48: Wednesday | D48: 46
B49: 2023-02-16 | C49: Thursday | D49: 47
B50: 2023-02-17 | C50: Friday | D50: 48
B51: 2023-02-18 | C51: Saturday | D51: 49
B52: 2023-02-19 | C52: Sunday | D52: 50
B53: 2023-02-20 | C53: Monday | D53: 51
B54: 2023-02-21 | C54: Tuesday | D54: 52
B55: 2023-02-22 | C55: Wednesday | D55: 53
B56: 2023-02-23 | C56: Thursday | D56: 54
B57: 2023-02-24 | C57: Friday | D57: 55
B58: 2023-02-25 | C58: Saturday | D58: 56
B59: 2023-02-26 | C59: Sunday | D59: 57
B60: 2023-02-27 | C60: Monday | D60: 58
B61: 2023-02-28 | C61: Tuesday | D61: 59
B62: 2023-03-01 | C62: Wednesday | D62: 60
B63: 2023-03-02 | C63: Thursday | D63: 61
B64: 2023-03-03 | C64: Friday | D64: 62
B65: 2023-03-04 | C65: Saturday | D65: 63
B66: 2023-03-05 | C66: Sunday | D66: 64
B67: 2023-03-06 | C67: Monday | D67: 65
B68: 2023-03-07 | C68: Tuesday | D68: 66
B69: 2023-03-08 | C69: Wednesday | D69: 67
B70: 2023-03-09 | C70: Thursday | D70: 68
B71: 2023-03-10 | C71: Friday | D71: 69
B72: 2023-03-11 | C72: Saturday | D72: 70
B73: 2023-03-12 | C73: Sunday | D73: 71
B74: 2023-03-13 | C74: Monday | D74: 72
B75: 2023-03-14 | C75: Tuesday | D75: 73
B76: 2023-03-15 | C76: Wednesday | D76: 74
B77: 2023-03-16 | C77: Thursday | D77: 75
B78: 2023-03-17 | C78: Friday | D78: 76
B79: 2023-03-18 | C79: Saturday | D79: 77
B80: 2023-03-19 | C80: Sunday | D80: 78
B81: 2023-03-20 | C81: Monday | D81: 79
B82: 2023-03-21 | C82: Tuesday | D82: 80
B83: 2023-03-22 | C83: Wednesday | D83: 81
B84: 2023-03-23 | C84: Thursday | D84: 82
B85: 2023-03-24 | C85: Friday | D85: 83
B86: 2023-03-25 | C86: Saturday | D86: 84
B87: 2023-03-26 | C87: Sunday | D87: 85
B88: 2023-03-27 | C88: Monday | D88: 86
B89: 2023-03-28 | C89: Tuesday | D89: 87
B90: 2023-03-29 | C90: Wednesday | D90: 88
B91: 2023-03-30 | C91: Thursday | D91: 89
B92: 2023-03-31 | C92: Friday | D92: 90
B93: 2023-04-01 | C93: Saturday | D93: 91
B94: 2023-04-02 | C94: Sunday | D94: 92
B95: 2023-04-03 | C95: Monday | D95: 93
B96: 2023-04-04 | C96: Tuesday | D96: 94
B97: 2023-04-05 | C97: Wednesday | D97: 95
B98: 2023-04-06 | C98: Thursday | D98: 96
B99: 2023-04-07 | C99: Friday | D99: 97
B100: 2023-04-08 | C100: Saturday | D100: 98
B101: 2023-04-09 | C101: Sunday | D101: 99
B102: 2023-04-10 | C102: Monday | D102: 100
B103: 2023-04-11 | C103: Tuesday | D103: 101
B104: 2023-04-12 | C104: Wednesday | D104: 102
B105: 2023-04-13 | C105: Thursday | D105: 103
B106: 2023-04-14 | C106: Friday | D106: 104
B107: 2023-04-15 | C107: Saturday | D107: 105
B108: 2023-04-16 | C108: Sunday | D108: 106
B109: 2023-04-17 | C109: Monday | D109: 107
B110: 2023-04-18 | C110: Tuesday | D110: 108
B111: 2023-04-19 | C111: Wednesday | D111: 109
B112: 2023-04-20 | C112: Thursday | D112: 110
B113: 2023-04-21 | C113: Friday | D113: 111
B114: 2023-04-22 | C114: Saturday | D114: 112
B115: 2023-04-23 | C115: Sunday | D115: 113
B116: 2023-04-24 | C116: Monday | D116: 114
B117: 2023-04-25 | C117: Tuesday | D117: 115
B118: 2023-04-26 | C118: Wednesday | D118: 116
B119: 2023-04-27 | C119: Thursday | D119: 117
B120: 2023-04-28 | C120: Friday | D120: 118
B121: 2023-04-29 | C121: Saturday | D121: 119
B122: 2023-04-30 | C122: Sunday | D122: 120
B123: 2023-05-01 | C123: Monday | D123: 121
B124: 2023-05-02 | C124: Tuesday | D124: 122
B125: 2023-05-03 | C125: Wednesday | D125: 123
B126: 2023-05-04 | C126: Thursday | D126: 124
B127: 2023-05-05 | C127: Friday | D127: 125
B128: 2023-05-06 | C128: Saturday | D128: 126
B129: 2023-05-07 | C129: Sunday | D129: 127
B130: 2023-05-08 | C130: Monday | D130: 128
B131: 2023-05-09 | C131: Tuesday | D131: 129
B132: 2023-05-10 | C132: Wednesday | D132: 130
B133: 2023-05-11 | C133: Thursday | D133: 131
B134: 2023-05-12 | C134: Friday | D134: 132
B135: 2023-05-13 | C135: Saturday | D135: 133
B136: 2023-05-14 | C136: Sunday | D136: 134
B137: 2023-05-15 | C137: Monday | D137: 135
B138: 2023-05-16 | C138: Tuesday | D138: 136
B139: 2023-05-17 | C139: Wednesday | D139: 137
B140: 2023-05-18 | C140: Thursday | D140: 138
B141: 2023-05-19 | C141: Friday | D141: 139
B142: 2023-05-20 | C142: Saturday | D142: 140
B143: 2023-05-21 | C143: Sunday | D143: 141
B144: 2023-05-22 | C144: Monday | D144: 142
B145: 2023-05-23 | C145: Tuesday | D145: 143
B146: 2023-05-24 | C146: Wednesday | D146: 144
B147: 2023-05-25 | C147: Thursday | D147: 145
B148: 2023-05-26 | C148: Friday | D148: 146
B149: 2023-05-27 | C149: Saturday | D149: 147
B150: 2023-05-28 | C150: Sunday | D150: 148
B151: 2023-05-29 | C151: Monday | D151: 149
B152: 2023-05-30 | C152: Tuesday | D152: 150
B153: 2023-05-31 | C153: Wednesday | D153: 151
B154: 2023-06-01 | C154: Thursday | D154: 152
B155: 2023-06-02 | C155: Friday | D155: 153
B156: 2023-06-03 | C156: Saturday | D156: 154
B157: 2023-06-04 | C157: Sunday | D157: 155
B158: 2023-06-05 | C158: Monday | D158: 156
B159: 2023-06-06 | C159: Tuesday | D159: 157
B160: 2023-06-07 | C160: Wednesday | D160: 158
B161: 2023-06-08 | C161: Thursday | D161: 159
B162: 2023-06-09 | C162: Friday | D162: 160
B163: 2023-06-10 | C163: Saturday | D163: 161
B164: 2023-06-11 | C164: Sunday | D164: 162
B165: 2023-06-12 | C165: Monday | D165: 163
B166: 2023-06-13 | C166: Tuesday | D166: 164
B167: 2023-06-14 | C167: Wednesday | D167: 165
B168: 2023-06-15 | C168: Thursday | D168: 166
B169: 2023-06-16 | C169: Friday | D169: 167
B170: 2023-06-17 | C170: Saturday | D170: 168
B171: 2023-06-18 | C171: Sunday | D171: 169
B172: 2023-06-19 | C172: Monday | D172: 170
B173: 2023-06-20 | C173: Tuesday | D173: 171
B174: 2023-06-21 | C174: Wednesday | D174: 172
B175: 2023-06-22 | C175: Thursday | D175: 173
B176: 2023-06-23 | C176: Friday | D176: 174
B177: 2023-06-24 | C177: Saturday | D177: 175
B178: 2023-06-25 | C178: Sunday | D178: 176
B179: 2023-06-26 | C179: Monday | D179: 177
B180: 2023-06-27 | C180: Tuesday | D180: 178
B181: 2023-06-28 | C181: Wednesday | D181: 179
B182: 2023-06-29 | C182: Thursday | D182: 180
B183: 2023-06-30 | C183: Friday | D183: 181
B184: 2023-07-01 | C184: Saturday | D184: 182
B185: 2023-07-02 | C185: Sunday | D185: 183
B186: 2023-07-03 | C186: Monday | D186: 184
B187: 2023-07-04 | C187: Tuesday | D187: 185
B188: 2023-07-05 | C188: Wednesday | D188: 186
B189: 2023-07-06 | C189: Thursday | D189: 187
B190: 2023-07-07 | C190: Friday | D190: 188
B191: 2023-07-08 | C191: Saturday | D191: 189
B192: 2023-07-09 | C192: Sunday | D192: 190
B193: 2023-07-10 | C193: Monday | D193: 191
B194: 2023-07-11 | C194: Tuesday | D194: 192
B195: 2023-07-12 | C195: Wednesday | D195: 193
B196: 2023-07-13 | C196: Thursday | D196: 194
B197: 2023-07-14 | C197: Friday | D197: 195
B198: 2023-07-15 | C198: Saturday | D198: 196
B199: 2023-07-16 | C199: Sunday | D199: 197
B200: 2023-07-17 | C200: Monday | D200: 198
... 167 more rows

Sheet Working Hours Calculator
A2: Please use whichever calculator is relevant:
A4: There are 260 potential working days in 2023 (all days minus weekends)
A8: Hours Per Week
A9: Contracted Hours Per Week (Including AL/PH) for the whole year | B9: Working Hours in 2023 | C9: Daily hours | D9: Under 5 Years(35Xdaily hours) | E9: Over 5 Years(40xdaily hours) | F9: Total Hours Per Year (Excluding AL/PH) Under 5 Years Cont. Service | G9: Total Hours Per Year (Excluding AL/PH) Over 5 Years Cont. Service | H9: F*0.15494 | I9: G*0.18108 | J9: H+F | K9: G+I
A10: 18.25 | B10: =C10*260 -> 949 | C10: =A10/5 -> 3.65 | D10: =35*C10 -> 127.75 | E10: =40*C10 -> 146 | F10: =B10-D10 -> 821.25 | G10: =B10-E10 -> 803 | H10: =F10*0.15494 -> 127.244475 | I10: =G10*0.18108 -> 145.40724 | J10: =F10+H10 -> 948.494475 | K10: =G10+I10 -> 948.40724
A16: Total Hours Per Year
A17: Hours for the whole year (Including AL/PH) | B17: Daily Hours | C17: Under 5 Years(35Xdaily hours) | D17: Over 5 Years(39xdaily hours) | F17: Total Hours Per Year (Excluding AL/PH) Under 5 Years Cont. Service | G17: Total Hours Per Year (Excluding AL/PH) Over 5 Years Cont. Service | H17: F*0.15494 | I17: G*0.18108 | J17: H+F | K17: G+I
A18: 1885 | B18: =A18/260 -> 7.25 | C18: =35*B18 -> 253.75 | D18: =40*B18 -> 290 | F18: =A18-C18 -> 1631.25 | G18: =A18-D18 -> 1595 | H18: =F18*0.15494 -> 252.745875 | I18: =G18*0.18108 -> 288.8226 | J18: =F18+H18 -> 1883.995875 | K18: =G18+I18 -> 1883.8226

Sheet 2023 Template
B1: ANNUALISED HOURS PLANNER 2023 | Y1: Days | AB1: Y/N | AC1: Date | AD1: Day | AE1: Number of days | AF1: Working Days | AG1: Count working days for these dates
Y2: 1 | AB2: Yes | AC2: 2023-01-01 | AD2: Sunday | AE2: 1 | AF2: 0 | AG2: =IF($AC2>=$AI$2,IF($AC2<=$AI$3,AF2,0),0) -> 0 | AI2: =SList -> 2023-01-01
Y3: 2 | AB3: No | AC3: 2023-01-02 | AD3: Monday | AE3: 2 | AF3: 1 | AG3: =IF($AC3>=$AI$2,IF($AC3<=$AI$3,AF3,0),0) -> 1 | AI3: =O9 -> 2023-12-31
E4: EMPLOYEE DETAILS: | Y4: 3 | AC4: 2023-01-03 | AD4: Tuesday | AE4: 3 | AF4: 1 | AG4: 1
B5: For guidance on using the spreadsheet, please click on the Guidance tab below. | E5: Name | Y5: 4 | AC5: 2023-01-04 | AD5: Wednesday | AE5: 4 | AF5: 1 | AG5: 1
E6: Job Title | Y6: 5 | AC6: 2023-01-05 | AD6: Thursday | AE6: 5 | AF6: 1 | AG6: 1
E7: Contracted hours this year (excluding AL and PH) | O7: 0 | Y7: 6 | AC7: 2023-01-06 | AD7: Friday | AE7: 6 | AF7: 1 | AG7: 1
E8: Start date | K8: =VALUE(SList) -> 44927 | L8: =K8-1 -> 44926 | O8: 2023-01-01 | Y8: 7 | AC8: 2023-01-07 | AD8: Saturday | AE8: 7 | AF8: 0 | AG8: 0
E9: End date | K9: =VALUE(O9) -> 45291 | L9: =K9+1 -> 45292 | O9: 2023-12-31 | AC9: 2023-01-08 | AD9: Sunday | AE9: 8 | AF9: 0 | AG9: 0
E10: Greater than 5 Years Service? | O10: No | AC10: 2023-01-09 | AD10: Monday | AE10: 9 | AF10: 1 | AG10: 1
E11: Average number of days worked per week | O11: 5 | AC11: 2023-01-10 | AD11: Tuesday | AE11: 10 | AF11: 1 | AG11: 1
E12: Hours taking start and end dates into account | J12: =O9-O8+ 1 -> 365 | K12: =IF(J12 >= 365,365,J12) -> 365 | O12: =SUM(O7/260)*AG368 -> 0 | AC12: 2023-01-11 | AD12: Wednesday | AE12: 11 | AF12: 1 | AG12: 1
AC13: 2023-01-12 | AD13: Thursday | AE13: 12 | AF13: 1 | AG13: 1
E14: BROUGHT FORWARD HOURS: | AC14: 2023-01-13 | AD14: Friday | AE14: 13 | AF14: 1 | AG14: 1
E15: Outstanding hours B/F from previous sheet | O15: 0 | AC15: 2023-01-14 | AD15: Saturday | AE15: 14 | AF15: 0 | AG15: 0
E16: Outstanding AL/PH hours from previous sheet | O16: 0 | AC16: 2023-01-15 | AD16: Sunday | AE16: 15 | AF16: 0 | AG16: 0
AC17: 2023-01-16 | AD17: Monday | AE17: 16 | AF17: 1 | AG17: 1
E18: TOTALS: | AC18: 2023-01-17 | AD18: Tuesday | AE18: 17 | AF18: 1 | AG18: 1
E19: Total hours plus holiday entitlement (excluding B/F) | O19: =+O12+O80-O16 -> 0 | AC19: 2023-01-18 | AD19: Wednesday | AE19: 18 | AF19: 1 | AG19: 1
E20: Average weekly hours | K20: =O12/K79 -> 0 | O20: =ROUND(O19/AG370,4) -> 0 | AC20: 2023-01-19 | AD20: Thursday | AE20: 19 | AF20: 1 | AG20: 1
E21: Average daily hours | K21: =K20/5 -> 0 | O21: =ROUND(O20/O11,6) -> 0 | AC21: 2023-01-20 | AD21: Friday | AE21: 20 | AF21: 1 | AG21: 1
AC22: 2023-01-21 | AD22: Saturday | AE22: 21 | AF22: 0 | AG22: 0
B23: ANNUALISED HOURS PLANNER | AC23: 2023-01-22 | AD23: Sunday | AE23: 22 | AF23: 0 | AG23: 0
B24: Week Start Date | C24: Monday | D24: Tuesday | E24: Wednesday | F24: Thursday | G24: Friday | H24: Saturday | I24: Sunday | J24: Sickness | K24: Holiday | L24: Special Leave | M24: AL/PH Hours (Not Daily Average) | N24: Weekly Total (Excl. AL/PH) | O24: Hours Remaining (Excl. AL/PH) | AC24: 2023-01-23 | AD24: Monday | AE24: 23 | AF24: 1 | AG24: 1
A25: =VALUE(B25) -> 44921 | B25: 2022-12-26 | C25: 0 | D25: 0 | E25: 0 | F25: 0 | G25: 0 | H25: 0 | I25: 0 | J25: =IF(M25=0,COUNTIF(C25:I25,"LSA"),0) -> 0 | K25: =IF(M25=0,COUNTIF(C25:I25,"LHE"),0) -> 0 | L25: =COUNTIF(C25:I25,"LSL") -> 0 | M25: 0 | N25: 0 | O25: =O12+O15-N25 -> 0 | AC25: 2023-01-24 | AD25: Tuesday | AE25: 24 | AF25: 1 | AG25: 1
A26: =VALUE(B26) -> 44928 | B26: =B25+7 -> 2023-01-02 | C26: 0 | D26: 0 | E26: 0 | F26: 0 | G26: 0 | H26: 0 | I26: 0 | J26: =COUNTIF(C26:I26,"LSA") -> 0 | K26: =IF(M26=0,COUNTIF(C26:I26,"LHE"),0) -> 0 | L26: =COUNTIF(C26:I26,"LSL") -> 0 | M26: 0 | N26: =SUM(C26:I26)+(J26*$O$21)+(L26*$O$21) -> 0 | O26: =O25-N26 -> 0 | AC26: 2023-01-25 | AD26: Wednesday | AE26: 25 | AF26: 1 | AG26: 1
A27: 44935 | B27: 2023-01-09 | C27: 0 | D27: 0 | E27: 0 | F27: 0 | G27: 0 | H27: 0 | I27: 0 | J27: 0 | K27: 0 | L27: 0 | M27: 0 | N27: =SUM(C27:I27)+(J27*$O$21)+(L27*$O$21) -> 0 | O27: =O26-N27 -> 0 | AC27: 2023-01-26 | AD27: Thursday | AE27: 26 | AF27: 1 | AG27: 1
A28: 44942 | B28: 2023-01-16 | C28: 0 | D28: 0 | E28: 0 | F28: 0 | G28: 0 | H28: 0 | I28: 0 | J28: 0 | K28: 0 | L28: 0 | M28: 0 | N28: 0 | O28: 0 | AC28: 2023-01-27 | AD28: Friday | AE28: 27 | AF28: 1 | AG28: 1
A29: 44949 | B29: 2023-01-23 | C29: 0 | D29: 0 | E29: 0 | F29: 0 | G29: 0 | H29: 0 | I29: 0 | J29: 0 | K29: 0 | L29: 0 | M29: 0 | N29: 0 | O29: 0 | AC29: 2023-01-28 | AD29: Saturday | AE29: 28 | AF29: 0 | AG29: 0
A30: 44956 | B30: 2023-01-30 | C30: 0 | D30: 0 | E30: 0 | F30: 0 | G30: 0 | H30: 0 | I30: 0 | J30: 0 | K30: 0 | L30: 0 | M30: 0 | N30: 0 | O30: 0 | AC30: 2023-01-29 | AD30: Sunday | AE30: 29 | AF30: 0 | AG30: 0
A31: 44963 | B31: 2023-02-06 | C31: 0 | D31: 0 | E31: 0 | F31: 0 | G31: 0 | H31: 0 | I31: 0 | J31: 0 | K31: 0 | L31: 0 | M31: 0 | N31: 0 | O31: 0 | AC31: 2023-01-30 | AD31: Monday | AE31: 30 | AF31: 1 | AG31: 1
A32: 44970 | B32: 2023-02-13 | C32: 0 | D32: 0 | E32: 0 | F32: 0 | G32: 0 | H32: 0 | I32: 0 | J32: 0 | K32: 0 | L32: 0 | M32: 0 | N32: 0 | O32: 0 | AC32: 2023-01-31 | AD32: Tuesday | AE32: 31 | AF32: 1 | AG32: 1
A33: 44977 | B33: 2023-02-20 | C33: 0 | D33: 0 | E33: 0 | F33: 0 | G33: 0 | H33: 0 | I33: 0 | J33: 0 | K33: 0 | L33: 0 | M33: 0 | N33: 0 | O33: 0 | AC33: 2023-02-01 | AD33: Wednesday | AE33: 32 | AF33: 1 | AG33: 1
A34: 44984 | B34: 2023-02-27 | C34: 0 | D34: 0 | E34: 0 | F34: 0 | G34: 0 | H34: 0 | I34: 0 | J34: 0 | K34: 0 | L34: 0 | M34: 0 | N34: 0 | O34: 0 | AC34: 2023-02-02 | AD34: Thursday | AE34: 33 | AF34: 1 | AG34: 1
A35: 44991 | B35: 2023-03-06 | C35: 0 | D35: 0 | E35: 0 | F35: 0 | G35: 0 | H35: 0 | I35: 0 | J35: 0 | K35: 0 | L35: 0 | M35: 0 | N35: 0 | O35: 0 | AC35: 2023-02-03 | AD35: Friday | AE35: 34 | AF35: 1 | AG35: 1
A36: 44998 | B36: 2023-03-13 | C36: 0 | D36: 0 | E36: 0 | F36: 0 | G36: 0 | H36: 0 | I36: 0 | J36: 0 | K36: 0 | L36: 0 | M36: 0 | N36: 0 | O36: 0 | AC36: 2023-02-04 | AD36: Saturday | AE36: 35 | AF36: 0 | AG36: 0
A37: 45005 | B37: 2023-03-20 | C37: 0 | D37: 0 | E37: 0 | F37: 0 | G37: 0 | H37: 0 | I37: 0 | J37: 0 | K37: 0 | L37: 0 | M37: 0 | N37: 0 | O37: 0 | AC37: 2023-02-05 | AD37: Sunday | AE37: 36 | AF37: 0 | AG37: 0
A38: 45012 | B38: 2023-03-27 | C38: 0 | D38: 0 | E38: 0 | F38: 0 | G38: 0 | H38: 0 | I38: 0 | J38: 0 | K38: 0 | L38: 0 | M38: 0 | N38: 0 | O38: 0 | AC38: 2023-02-06 | AD38: Monday | AE38: 37 | AF38: 1 | AG38: 1
A39: 45019 | B39: 2023-04-03 | C39: 0 | D39: 0 | E39: 0 | F39: 0 | G39: 0 | H39: 0 | I39: 0 | J39: 0 | K39: 0 | L39: 0 | M39: 0 | N39: 0 | O39: 0 | AC39: 2023-02-07 | AD39: Tuesday | AE39: 38 | AF39: 1 | AG39: 1
A40: 45026 | B40: 2023-04-10 | C40: 0 | D40: 0 | E40: 0 | F40: 0 | G40: 0 | H40: 0 | I40: 0 | J40: 0 | K40: 0 | L40: 0 | M40: 0 | N40: 0 | O40: 0 | AC40: 2023-02-08 | AD40: Wednesday | AE40: 39 | AF40: 1 | AG40: 1
A41: 45033 | B41: 2023-04-17 | C41: 0 | D41: 0 | E41: 0 | F41: 0 | G41: 0 | H41: 0 | I41: 0 | J41: 0 | K41: 0 | L41: 0 | M41: 0 | N41: 0 | O41: 0 | AC41: 2023-02-09 | AD41: Thursday | AE41: 40 | AF41: 1 | AG41: 1
A42: 45040 | B42: 2023-04-24 | C42: 0 | D42: 0 | E42: 0 | F42: 0 | G42: 0 | H42: 0 | I42: 0 | J42: 0 | K42: 0 | L42: 0 | M42: 0 | N42: 0 | O42: 0 | AC42: 2023-02-10 | AD42: Friday | AE42: 41 | AF42: 1 | AG42: 1
A43: 45047 | B43: 2023-05-01 | C43: 0 | D43: 0 | E43: 0 | F43: 0 | G43: 0 | H43: 0 | I43: 0 | J43: 0 | K43: 0 | L43: 0 | M43: 0 | N43: 0 | O43: 0 | AC43: 2023-02-11 | AD43: Saturday | AE43: 42 | AF43: 0 | AG43: 0
A44: 45054 | B44: 2023-05-08 | C44: 0 | D44: 0 | E44: 0 | F44: 0 | G44: 0 | H44: 0 | I44: 0 | J44: 0 | K44: 0 | L44: 0 | M44: 0 | N44: 0 | O44: 0 | AC44: 2023-02-12 | AD44: Sunday | AE44: 43 | AF44: 0 | AG44: 0
A45: 45061 | B45: 2023-05-15 | C45: 0 | D45: 0 | E45: 0 | F45: 0 | G45: 0 | H45: 0 | I45: 0 | J45: 0 | K45: 0 | L45: 0 | M45: 0 | N45: 0 | O45: 0 | AC45: 2023-02-13 | AD45: Monday | AE45: 44 | AF45: 1 | AG45: 1
A46: 45068 | B46: 2023-05-22 | C46: 0 | D46: 0 | E46: 0 | F46: 0 | G46: 0 | H46: 0 | I46: 0 | J46: 0 | K46: 0 | L46: 0 | M46: 0 | N46: 0 | O46: 0 | AC46: 2023-02-14 | AD46: Tuesday | AE46: 45 | AF46: 1 | AG46: 1
A47: 45075 | B47: 2023-05-29 | C47: 0 | D47: 0 | E47: 0 | F47: 0 | G47: 0 | H47: 0 | I47: 0 | J47: 0 | K47: 0 | L47: 0 | M47: 0 | N47: 0 | O47: 0 | AC47: 2023-02-15 | AD47: Wednesday | AE47: 46 | AF47: 1 | AG47: 1
A48: 45082 | B48: 2023-06-05 | C48: 0 | D48: 0 | E48: 0 | F48: 0 | G48: 0 | H48: 0 | I48: 0 | J48: 0 | K48: 0 | L48: 0 | M48: 0 | N48: 0 | O48: 0 | AC48: 2023-02-16 | AD48: Thursday | AE48: 47 | AF48: 1 | AG48: 1
A49: 45089 | B49: 2023-06-12 | C49: 0 | D49: 0 | E49: 0 | F49: 0 | G49: 0 | H49: 0 | I49: 0 | J49: 0 | K49: 0 | L49: 0 | M49: 0 | N49: 0 | O49: 0 | AC49: 2023-02-17 | AD49: Friday | AE49: 48 | AF49: 1 | AG49: 1
A50: 45096 | B50: 2023-06-19 | C50: 0 | D50: 0 | E50: 0 | F50: 0 | G50: 0 | H50: 0 | I50: 0 | J50: 0 | K50: 0 | L50: 0 | M50: 0 | N50: 0 | O50: 0 | AC50: 2023-02-18 | AD50: Saturday | AE50: 49 | AF50: 0 | AG50: 0
A51: 45103 | B51: 2023-06-26 | C51: 0 | D51: 0 | E51: 0 | F51: 0 | G51: 0 | H51: 0 | I51: 0 | J51: 0 | K51: 0 | L51: 0 | M51: 0 | N51: 0 | O51: 0 | AC51: 2023-02-19 | AD51: Sunday | AE51: 50 | AF51: 0 | AG51: 0
A52: 45110 | B52: 2023-07-03 | C52: 0 | D52: 0 | E52: 0 | F52: 0 | G52: 0 | H52: 0 | I52: 0 | J52: 0 | K52: 0 | L52: 0 | M52: 0 | N52: 0 | O52: 0 | AC52: 2023-02-20 | AD52: Monday | AE52: 51 | AF52: 1 | AG52: 1
A53: 45117 | B53: 2023-07-10 | C53: 0 | D53: 0 | E53: 0 | F53: 0 | G53: 0 | H53: 0 | I53: 0 | J53: 0 | K53: 0 | L53: 0 | M53: 0 | N53: 0 | O53: 0 | AC53: 2023-02-21 | AD53: Tuesday | AE53: 52 | AF53: 1 | AG53: 1
A54: 45124 | B54: 2023-07-17 | C54: 0 | D54: 0 | E54: 0 | F54: 0 | G54: 0 | H54: 0 | I54: 0 | J54: 0 | K54: 0 | L54: 0 | M54: 0 | N54: 0 | O54: 0 | AC54: 2023-02-22 | AD54: Wednesday | AE54: 53 | AF54: 1 | AG54: 1
A55: 45131 | B55: 2023-07-24 | C55: 0 | D55: 0 | E55: 0 | F55: 0 | G55: 0 | H55: 0 | I55: 0 | J55: 0 | K55: 0 | L55: 0 | M55: 0 | N55: 0 | O55: 0 | AC55: 2023-02-23 | AD55: Thursday | AE55: 54 | AF55: 1 | AG55: 1
A56: 45138 | B56: 2023-07-31 | C56: 0 | D56: 0 | E56: 0 | F56: 0 | G56: 0 | H56: 0 | I56: 0 | J56: 0 | K56: 0 | L56: 0 | M56: 0 | N56: 0 | O56: 0 | AC56: 2023-02-24 | AD56: Friday | AE56: 55 | AF56: 1 | AG56: 1
A57: 45145 | B57: 2023-08-07 | C57: 0 | D57: 0 | E57: 0 | F57: 0 | G57: 0 | H57: 0 | I57: 0 | J57: 0 | K57: 0 | L57: 0 | M57: 0 | N57: 0 | O57: 0 | AC57: 2023-02-25 | AD57: Saturday | AE57: 56 | AF57: 0 | AG57: 0
A58: 45152 | B58: =B57+7 -> 2023-08-14 | C58: 0 | D58: 0 | E58: 0 | F58: 0 | G58: 0 | H58: 0 | I58: 0 | J58: 0 | K58: 0 | L58: 0 | M58: 0 | N58: 0 | O58: 0 | AC58: 2023-02-26 | AD58: Sunday | AE58: 57 | AF58: 0 | AG58: 0
A59: 45159 | B59: 2023-08-21 | C59: 0 | D59: 0 | E59: 0 | F59: 0 | G59: 0 | H59: 0 | I59: 0 | J59: 0 | K59: 0 | L59: 0 | M59: 0 | N59: 0 | O59: 0 | AC59: 2023-02-27 | AD59: Monday | AE59: 58 | AF59: 1 | AG59: 1
A60: 45166 | B60: 2023-08-28 | C60: 0 | D60: 0 | E60: 0 | F60: 0 | G60: 0 | H60: 0 | I60: 0 | J60: 0 | K60: 0 | L60: 0 | M60: 0 | N60: 0 | O60: 0 | AC60: 2023-02-28 | AD60: Tuesday | AE60: 59 | AF60: 1 | AG60: 1
A61: 45173 | B61: 2023-09-04 | C61: 0 | D61: 0 | E61: 0 | F61: 0 | G61: 0 | H61: 0 | I61: 0 | J61: 0 | K61: 0 | L61: 0 | M61: 0 | N61: 0 | O61: 0 | AC61: 2023-03-01 | AD61: Wednesday | AE61: 60 | AF61: 1 | AG61: 1
A62: 45180 | B62: 2023-09-11 | C62: 0 | D62: 0 | E62: 0 | F62: 0 | G62: 0 | H62: 0 | I62: 0 | J62: 0 | K62: 0 | L62: 0 | M62: 0 | N62: 0 | O62: 0 | AC62: 2023-03-02 | AD62: Thursday | AE62: 61 | AF62: 1 | AG62: 1
A63: 45187 | B63: 2023-09-18 | C63: 0 | D63: 0 | E63: 0 | F63: 0 | G63: 0 | H63: 0 | I63: 0 | J63: 0 | K63: 0 | L63: 0 | M63: 0 | N63: 0 | O63: 0 | AC63: 2023-03-03 | AD63: Friday | AE63: 62 | AF63: 1 | AG63: 1
A64: 45194 | B64: 2023-09-25 | C64: 0 | D64: 0 | E64: 0 | F64: 0 | G64: 0 | H64: 0 | I64: 0 | J64: 0 | K64: 0 | L64: 0 | M64: 0 | N64: 0 | O64: 0 | AC64: 2023-03-04 | AD64: Saturday | AE64: 63 | AF64: 0 | AG64: 0
A65: 45201 | B65: 2023-10-02 | C65: 0 | D65: 0 | E65: 0 | F65: 0 | G65: 0 | H65: 0 | I65: 0 | J65: 0 | K65: 0 | L65: 0 | M65: 0 | N65: 0 | O65: 0 | AC65: 2023-03-05 | AD65: Sunday | AE65: 64 | AF65: 0 | AG65: 0
A66: 45208 | B66: 2023-10-09 | C66: 0 | D66: 0 | E66: 0 | F66: 0 | G66: 0 | H66: 0 | I66: 0 | J66: 0 | K66: 0 | L66: 0 | M66: 0 | N66: 0 | O66: 0 | AC66: 2023-03-06 | AD66: Monday | AE66: 65 | AF66: 1 | AG66: 1
A67: 45215 | B67: 2023-10-16 | C67: 0 | D67: 0 | E67: 0 | F67: 0 | G67: 0 | H67: 0 | I67: 0 | J67: 0 | K67: 0 | L67: 0 | M67: 0 | N67: 0 | O67: 0 | AC67: 2023-03-07 | AD67: Tuesday | AE67: 66 | AF67: 1 | AG67: =IF($AC67>=$AI$2,IF($AC67<=$AI$3,AF67,0),0) -> 1
A68: 45222 | B68: 2023-10-23 | C68: 0 | D68: 0 | E68: 0 | F68: 0 | G68: 0 | H68: 0 | I68: 0 | J68: 0 | K68: 0 | L68: 0 | M68: 0 | N68: 0 | O68: 0 | AC68: 2023-03-08 | AD68: Wednesday | AE68: 67 | AF68: 1 | AG68: 1
A69: 45229 | B69: 2023-10-30 | C69: 0 | D69: 0 | E69: 0 | F69: 0 | G69: 0 | H69: 0 | I69: 0 | J69: 0 | K69: 0 | L69: 0 | M69: 0 | N69: 0 | O69: 0 | AC69: 2023-03-09 | AD69: Thursday | AE69: 68 | AF69: 1 | AG69: 1
A70: 45236 | B70: 2023-11-06 | C70: 0 | D70: 0 | E70: 0 | F70: 0 | G70: 0 | H70: 0 | I70: 0 | J70: 0 | K70: 0 | L70: 0 | M70: 0 | N70: 0 | O70: 0 | AC70: 2023-03-10 | AD70: Friday | AE70: 69 | AF70: 1 | AG70: 1
A71: 45243 | B71: 2023-11-13 | C71: 0 | D71: 0 | E71: 0 | F71: 0 | G71: 0 | H71: 0 | I71: 0 | J71: 0 | K71: 0 | L71: 0 | M71: 0 | N71: 0 | O71: 0 | AC71: 2023-03-11 | AD71: Saturday | AE71: 70 | AF71: 0 | AG71: 0
A72: 45250 | B72: 2023-11-20 | C72: 0 | D72: 0 | E72: 0 | F72: 0 | G72: 0 | H72: 0 | I72: 0 | J72: 0 | K72: 0 | L72: 0 | M72: 0 | N72: 0 | O72: 0 | AC72: 2023-03-12 | AD72: Sunday | AE72: 71 | AF72: 0 | AG72: 0
A73: 45257 | B73: 2023-11-27 | C73: 0 | D73: 0 | E73: 0 | F73: 0 | G73: 0 | H73: 0 | I73: 0 | J73: 0 | K73: 0 | L73: 0 | M73: 0 | N73: 0 | O73: 0 | AC73: 2023-03-13 | AD73: Monday | AE73: 72 | AF73: 1 | AG73: 1
A74: 45264 | B74: 2023-12-04 | C74: 0 | D74: 0 | E74: 0 | F74: 0 | G74: 0 | H74: 0 | I74: 0 | J74: 0 | K74: 0 | L74: 0 | M74: 0 | N74: 0 | O74: 0 | AC74: 2023-03-14 | AD74: Tuesday | AE74: 73 | AF74: 1 | AG74: 1
A75: 45271 | B75: 2023-12-11 | C75: 0 | D75: 0 | E75: 0 | F75: 0 | G75: 0 | H75: 0 | I75: 0 | J75: 0 | K75: 0 | L75: 0 | M75: 0 | N75: 0 | O75: 0 | AC75: 2023-03-15 | AD75: Wednesday | AE75: 74 | AF75: 1 | AG75: 1
A76: 45278 | B76: 2023-12-18 | C76: 0 | D76: 0 | E76: 0 | F76: 0 | G76: 0 | H76: 0 | I76: 0 | J76: 0 | K76: 0 | L76: 0 | M76: 0 | N76: 0 | O76: 0 | AC76: 2023-03-16 | AD76: Thursday | AE76: 75 | AF76: 1 | AG76: 1
A77: 45285 | B77: 2023-12-25 | C77: 0 | D77: 0 | E77: 0 | F77: 0 | G77: 0 | H77: 0 | I77: 0 | J77: 0 | K77: 0 | L77: 0 | M77: 0 | N77: 0 | O77: 0 | AC77: 2023-03-17 | AD77: Friday | AE77: 76 | AF77: 1 | AG77: 1
AC78: 2023-03-18 | AD78: Saturday | AE78: 77 | AF78: 0 | AG78: 0
E79: ANNUAL LEAVE AND PUBLIC HOLIDAY (AL/PH): | J79: =J12/7 -> 52.14285714 | K79: =K12/7 -> 52.14285714 | AC79: 2023-03-19 | AD79: Sunday | AE79: 78 | AF79: 0 | AG79: 0
E80: Annual leave and public holiday entitlement (Inc. B/F) | O80: =IF($O$10= "Yes",$O$12*0.181818182,$O$12*0.155555556)+O16 -> 0 | AC80: 2023-03-20 | AD80: Monday | AE80: 79 | AF80: 1 | AG80: 1
E81: Annual leave and public holiday taken | J81: =SUM($K$25:$K$77) -> 0 | K81: =SUM($M$25:$M$77) -> 0 | O81: =J81*$O$21+K81 -> 0 | AC81: 2023-03-21 | AD81: Tuesday | AE81: 80 | AF81: 1 | AG81: 1
E82: Annual leave and public holiday remaining | O82: =O80-O81 -> 0 | AC82: 2023-03-22 | AD82: Wednesday | AE82: 81 | AF82: 1 | AG82: 1
AC83: 2023-03-23 | AD83: Thursday | AE83: 82 | AF83: 1 | AG83: 1
AC84: 2023-03-24 | AD84: Friday | AE84: 83 | AF84: 1 | AG84: 1
AC85: 2023-03-25 | AD85: Saturday | AE85: 84 | AF85: 0 | AG85: 0
AC86: 2023-03-26 | AD86: Sunday | AE86: 85 | AF86: 0 | AG86: 0
AC87: 2023-03-27 | AD87: Monday | AE87: 86 | AF87: 1 | AG87: 1
AC88: 2023-03-28 | AD88: Tuesday | AE88: 87 | AF88: 1 | AG88: 1
AC89: 2023-03-29 | AD89: Wednesday | AE89: 88 | AF89: 1 | AG89: 1
AC90: 2023-03-30 | AD90: Thursday | AE90: 89 | AF90: 1 | AG90: 1
AC91: 2023-03-31 | AD91: Friday | AE91: 90 | AF91: 1 | AG91: 1
AC92: 2023-04-01 | AD92: Saturday | AE92: 91 | AF92: 0 | AG92: 0
AC93: 2023-04-02 | AD93: Sunday | AE93: 92 | AF93: 0 | AG93: 0
AC94: 2023-04-03 | AD94: Monday | AE94: 93 | AF94: 1 | AG94: 1
AC95: 2023-04-04 | AD95: Tuesday | AE95: 94 | AF95: 1 | AG95: 1
AC96: 2023-04-05 | AD96: Wednesday | AE96: 95 | AF96: 1 | AG96: 1
AC97: 2023-04-06 | AD97: Thursday | AE97: 96 | AF97: 1 | AG97: 1
AC98: 2023-04-07 | AD98: Friday | AE98: 97 | AF98: 1 | AG98: 1
AC99: 2023-04-08 | AD99: Saturday | AE99: 98 | AF99: 0 | AG99: 0
AC100: 2023-04-09 | AD100: Sunday | AE100: 99 | AF100: 0 | AG100: 0
AC101: 2023-04-10 | AD101: Monday | AE101: 100 | AF101: 1 | AG101: 1
AC102: 2023-04-11 | AD102: Tuesday | AE102: 101 | AF102: 1 | AG102: 1
AC103: 2023-04-12 | AD103: Wednesday | AE103: 102 | AF103: 1 | AG103: 1
AC104: 2023-04-13 | AD104: Thursday | AE104: 103 | AF104: 1 | AG104: 1
AC105: 2023-04-14 | AD105: Friday | AE105: 104 | AF105: 1 | AG105: 1
AC106: 2023-04-15 | AD106: Saturday | AE106: 105 | AF106: 0 | AG106: 0
AC107: 2023-04-16 | AD107: Sunday | AE107: 106 | AF107: 0 | AG107: 0
AC108: 2023-04-17 | AD108: Monday | AE108: 107 | AF108: 1 | AG108: 1
AC109: 2023-04-18 | AD109: Tuesday | AE109: 108 | AF109: 1 | AG109: 1
AC110: 2023-04-19 | AD110: Wednesday | AE110: 109 | AF110: 1 | AG110: 1
AC111: 2023-04-20 | AD111: Thursday | AE111: 110 | AF111: 1 | AG111: 1
AC112: 2023-04-21 | AD112: Friday | AE112: 111 | AF112: 1 | AG112: 1
AC113: 2023-04-22 | AD113: Saturday | AE113: 112 | AF113: 0 | AG113: 0
AC114: 2023-04-23 | AD114: Sunday | AE114: 113 | AF114: 0 | AG114: 0
AC115: 2023-04-24 | AD115: Monday | AE115: 114 | AF115: 1 | AG115: 1
AC116: 2023-04-25 | AD116: Tuesday | AE116: 115 | AF116: 1 | AG116: 1
AC117: 2023-04-26 | AD117: Wednesday | AE117: 116 | AF117: 1 | AG117: 1
AC118: 2023-04-27 | AD118: Thursday | AE118: 117 | AF118: 1 | AG118: 1
AC119: 2023-04-28 | AD119: Friday | AE119: 118 | AF119: 1 | AG119: 1
AC120: 2023-04-29 | AD120: Saturday | AE120: 119 | AF120: 0 | AG120: 0
AC121: 2023-04-30 | AD121: Sunday | AE121: 120 | AF121: 0 | AG121: 0
AC122: 2023-05-01 | AD122: Monday | AE122: 121 | AF122: 1 | AG122: 1
AC123: 2023-05-02 | AD123: Tuesday | AE123: 122 | AF123: 1 | AG123: 1
AC124: 2023-05-03 | AD124: Wednesday | AE124: 123 | AF124: 1 | AG124: 1
AC125: 2023-05-04 | AD125: Thursday | AE125: 124 | AF125: 1 | AG125: 1
AC126: 2023-05-05 | AD126: Friday | AE126: 125 | AF126: 1 | AG126: 1
AC127: 2023-05-06 | AD127: Saturday | AE127: 126 | AF127: 0 | AG127: 0
AC128: 2023-05-07 | AD128: Sunday | AE128: 127 | AF128: 0 | AG128: 0
AC129: 2023-05-08 | AD129: Monday | AE129: 128 | AF129: 1 | AG129: 1
AC130: 2023-05-09 | AD130: Tuesday | AE130: 129 | AF130: 1 | AG130: 1
AC131: 2023-05-10 | AD131: Wednesday | AE131: 130 | AF131: 1 | AG131: =IF($AC131>=$AI$2,IF($AC131<=$AI$3,AF131,0),0) -> 1
AC132: 2023-05-11 | AD132: Thursday | AE132: 131 | AF132: 1 | AG132: 1
AC133: 2023-05-12 | AD133: Friday | AE133: 132 | AF133: 1 | AG133: 1
AC134: 2023-05-13 | AD134: Saturday | AE134: 133 | AF134: 0 | AG134: 0
AC135: 2023-05-14 | AD135: Sunday | AE135: 134 | AF135: 0 | AG135: 0
AC136: 2023-05-15 | AD136: Monday | AE136: 135 | AF136: 1 | AG136: 1
AC137: 2023-05-16 | AD137: Tuesday | AE137: 136 | AF137: 1 | AG137: 1
AC138: 2023-05-17 | AD138: Wednesday | AE138: 137 | AF138: 1 | AG138: 1
AC139: 2023-05-18 | AD139: Thursday | AE139: 138 | AF139: 1 | AG139: 1
AC140: 2023-05-19 | AD140: Friday | AE140: 139 | AF140: 1 | AG140: 1
AC141: 2023-05-20 | AD141: Saturday | AE141: 140 | AF141: 0 | AG141: 0
AC142: 2023-05-21 | AD142: Sunday | AE142: 141 | AF142: 0 | AG142: 0
AC143: 2023-05-22 | AD143: Monday | AE143: 142 | AF143: 1 | AG143: 1
AC144: 2023-05-23 | AD144: Tuesday | AE144: 143 | AF144: 1 | AG144: 1
AC145: 2023-05-24 | AD145: Wednesday | AE145: 144 | AF145: 1 | AG145: 1
AC146: 2023-05-25 | AD146: Thursday | AE146: 145 | AF146: 1 | AG146: 1
AC147: 2023-05-26 | AD147: Friday | AE147: 146 | AF147: 1 | AG147: 1
AC148: 2023-05-27 | AD148: Saturday | AE148: 147 | AF148: 0 | AG148: 0
AC149: 2023-05-28 | AD149: Sunday | AE149: 148 | AF149: 0 | AG149: 0
AC150: 2023-05-29 | AD150: Monday | AE150: 149 | AF150: 1 | AG150: 1
AC151: 2023-05-30 | AD151: Tuesday | AE151: 150 | AF151: 1 | AG151: 1
AC152: 2023-05-31 | AD152: Wednesday | AE152: 151 | AF152: 1 | AG152: 1
AC153: 2023-06-01 | AD153: Thursday | AE153: 152 | AF153: 1 | AG153: 1
AC154: 2023-06-02 | AD154: Friday | AE154: 153 | AF154: 1 | AG154: 1
AC155: 2023-06-03 | AD155: Saturday | AE155: 154 | AF155: 0 | AG155: 0
AC156: 2023-06-04 | AD156: Sunday | AE156: 155 | AF156: 0 | AG156: 0
AC157: 2023-06-05 | AD157: Monday | AE157: 156 | AF157: 1 | AG157: 1
AC158: 2023-06-06 | AD158: Tuesday | AE158: 157 | AF158: 1 | AG158: 1
AC159: 2023-06-07 | AD159: Wednesday | AE159: 158 | AF159: 1 | AG159: 1
AC160: 2023-06-08 | AD160: Thursday | AE160: 159 | AF160: 1 | AG160: 1
AC161: 2023-06-09 | AD161: Friday | AE161: 160 | AF161: 1 | AG161: 1
AC162: 2023-06-10 | AD162: Saturday | AE162: 161 | AF162: 0 | AG162: 0
AC163: 2023-06-11 | AD163: Sunday | AE163: 162 | AF163: 0 | AG163: 0
AC164: 2023-06-12 | AD164: Monday | AE164: 163 | AF164: 1 | AG164: 1
AC165: 2023-06-13 | AD165: Tuesday | AE165: 164 | AF165: 1 | AG165: 1
AC166: 2023-06-14 | AD166: Wednesday | AE166: 165 | AF166: 1 | AG166: 1
AC167: 2023-06-15 | AD167: Thursday | AE167: 166 | AF167: 1 | AG167: 1
AC168: 2023-06-16 | AD168: Friday | AE168: 167 | AF168: 1 | AG168: 1
AC169: 2023-06-17 | AD169: Saturday | AE169: 168 | AF169: 0 | AG169: 0
AC170: 2023-06-18 | AD170: Sunday | AE170: 169 | AF170: 0 | AG170: 0
AC171: 2023-06-19 | AD171: Monday | AE171: 170 | AF171: 1 | AG171: 1
AC172: 2023-06-20 | AD172: Tuesday | AE172: 171 | AF172: 1 | AG172: 1
AC173: 2023-06-21 | AD173: Wednesday | AE173: 172 | AF173: 1 | AG173: 1
AC174: 2023-06-22 | AD174: Thursday | AE174: 173 | AF174: 1 | AG174: 1
AC175: 2023-06-23 | AD175: Friday | AE175: 174 | AF175: 1 | AG175: 1
AC176: 2023-06-24 | AD176: Saturday | AE176: 175 | AF176: 0 | AG176: 0
AC177: 2023-06-25 | AD177: Sunday | AE177: 176 | AF177: 0 | AG177: 0
AC178: 2023-06-26 | AD178: Monday | AE178: 177 | AF178: 1 | AG178: 1
AC179: 2023-06-27 | AD179: Tuesday | AE179: 178 | AF179: 1 | AG179: 1
AC180: 2023-06-28 | AD180: Wednesday | AE180: 179 | AF180: 1 | AG180: 1
AC181: 2023-06-29 | AD181: Thursday | AE181: 180 | AF181: 1 | AG181: 1
AC182: 2023-06-30 | AD182: Friday | AE182: 181 | AF182: 1 | AG182: 1
AC183: 2023-07-01 | AD183: Saturday | AE183: 182 | AF183: 0 | AG183: 0
AC184: 2023-07-02 | AD184: Sunday | AE184: 183 | AF184: 0 | AG184: 0
AC185: 2023-07-03 | AD185: Monday | AE185: 184 | AF185: 1 | AG185: 1
AC186: 2023-07-04 | AD186: Tuesday | AE186: 185 | AF186: 1 | AG186: 1
AC187: 2023-07-05 | AD187: Wednesday | AE187: 186 | AF187: 1 | AG187: 1
AC188: 2023-07-06 | AD188: Thursday | AE188: 187 | AF188: 1 | AG188: 1
AC189: 2023-07-07 | AD189: Friday | AE189: 188 | AF189: 1 | AG189: 1
AC190: 2023-07-08 | AD190: Saturday | AE190: 189 | AF190: 0 | AG190: 0
AC191: 2023-07-09 | AD191: Sunday | AE191: 190 | AF191: 0 | AG191: 0
AC192: 2023-07-10 | AD192: Monday | AE192: 191 | AF192: 1 | AG192: 1
AC193: 2023-07-11 | AD193: Tuesday | AE193: 192 | AF193: 1 | AG193: 1
AC194: 2023-07-12 | AD194: Wednesday | AE194: 193 | AF194: 1 | AG194: 1
AC195: 2023-07-13 | AD195: Thursday | AE195: 194 | AF195: 1 | AG195: =IF($AC195>=$AI$2,IF($AC195<=$AI$3,AF195,0),0) -> 1
AC196: 2023-07-14 | AD196: Friday | AE196: 195 | AF196: 1 | AG196: 1
AC197: 2023-07-15 | AD197: Saturday | AE197: 196 | AF197: 0 | AG197: 0
AC198: 2023-07-16 | AD198: Sunday | AE198: 197 | AF198: 0 | AG198: 0
AC199: 2023-07-17 | AD199: Monday | AE199: 198 | AF199: 1 | AG199: 1
AC200: 2023-07-18 | AD200: Tuesday | AE200: 199 | AF200: 1 | AG200: 1
... 168 more rows
